[Event "26th OIBM 2023"]
[Site "Gmund am Tegernsee"]
[Date "2023.11.03"]
[Round "7.38"]
[White "Hanisch, Sebastian"]
[Black "Hainke, Guntram"]
[Result "1-0"]
[ECO "B13"]
[WhiteElo "2070"]
[BlackElo "2266"]
[Annotator "RC"]
[PlyCount "89"]
[EventDate "2023.10.04"]
[EventType "swiss"]
[EventCountry "GER"]
[SourceTitle "playchess.com"]
[Source "ChessBase"]
[SourceQuality "1"]
[TimeControl "40/5400+30:1800+30"]

1. d4 {[%emt 0:00:03]} d5 {[%emt 0:00:14]} 2. Bf4 {[%emt 0:00:05]} c5 {[%emt 0:00:58]} 3. e3 {[%emt 0:00:09]} cxd4 {[%emt 0:00:29]} 4. exd4 {[%emt 0:00:05]} Nc6 {[%emt 0:00:06]} 5. c3 {[%emt 0:00:24]} Bf5 {[%emt 0:00:22]} 6. Bd3 {[%emt 0:02:31]} Bxd3 {[%emt 0:00:16]} 7. Qxd3 {[%emt 0:00:04]} e6 {[%emt 0:00:30]} 8. Nf3 {[%emt 0:00:28]} Bd6 {[%emt 0:00:25]} 9. Bxd6 {[%emt 0:06:04]} Qxd6 {[%emt 0:00:08]} 10. O-O {[%emt 0:00:32]} Nge7 {[%emt 0:01:37]} 11. Nbd2 {[%emt 0:00:41]} O-O {[%emt 0:02:17]} 12. Rae1 {[%emt 0:02:43]} Rfe8 {[%emt 0:20:23]} 13. Ne5 {[%emt 0:02:09]} f6 {[%emt 0:05:03]} 14. Nxc6 {[%emt 0:02:23]} Nxc6 {[%emt 0:03:15]} 15. f4 {[%emt 0:00:48]} Rad8 {[%emt 0:04:35]} 16. Re3 {[%emt 0:08:21]} Ne7 {[%emt 0:08:35]} 17. Qe2 {[%emt 0:14:45]} Nf5 {[%emt 0:06:27]} 18. Rh3 {[%emt 0:04:56]} Qc7 {[%emt 0:04:52]} 19. Kh1 {[%emt 0:05:00]} g6 {[%emt 0:04:21]} 20. Qf2 {[%emt 0:04:09]} a6 {[%emt 0:03:32]} 21. g4 {[%emt 0:05:32]} Nd6 {[%emt 0:00:27]} 22. Qh4 {[%emt 0:01:12]} Qg7 {[%emt 0:02:56]} 23. Re3 {[%emt 0:03:37]} f5 {[%emt 0:05:36]} 24. Rxe6 {[%emt 0:02:27]} Qf7 {[%emt 0:07:34]} 25. Re5 {[%emt 0:05:27]} fxg4 {[%emt 0:02:26]} 26. Qxg4 {[%emt 0:01:07]} Rxe5 {[%emt 0:01:55]} 27. fxe5 {[%emt 0:01:17]} Nf5 {[%emt 0:00:06]} 28. Qf3 {[%emt 0:02:37]} Qd7 {[%emt 0:02:08]} 29. Rf2 {[%emt 0:02:45]} Ng7 {[%emt 0:03:55]} 30. Nf1 {[%emt 0:01:18]} Ne6 {[%emt 0:00:06]} 31. Ne3 {[%emt 0:02:38]} Rf8 {[%emt 0:06:11]} 32. Qg3 {[%emt 0:01:10]} Rxf2 {[%emt 0:01:29]} 33. Qxf2 {[%emt 0:00:03]} Qd8 {[%emt 0:00:38]} 34. Qf3 {[%emt 0:03:23]} Nc7 {[%emt 0:00:06]} 35. Ng4 {[%emt 0:03:22]} Qg5 {[%emt 0:01:21]} 36. Nf6+ {[%emt 0:01:45]} Kg7 {[%emt 0:00:17]} 37. Qf2 {[%emt 0:02:00]} Qc1+ {[%emt 0:02:10]} 38. Kg2 {[%emt 0:00:08]} Qg5+ {[%emt 0:00:14]} 39. Kf3 {[%emt 0:02:41]} Qc1 {[%emt 0:01:03]} 40. h4 {[%emt 0:01:30]} Qh1+ {[%emt 0:00:27]} 41. Kg3 {[%emt 0:33:27]} h6 {[%emt 0:01:00]} 42. Ng4 {[%emt 0:00:00]} h5 {[%emt 0:06:04]} 43. Qf6+ {[%emt 0:00:00]} Kh7 {[%emt 0:00:04]} 44. Qf7+ {[%emt 0:00:00]} Kh8 {[%emt 0:00:05]} 45. Qf8+ {[%emt 0:00:00]} 1-0

[Event "26th OIBM 2023"]
[Site "Gmund am Tegernsee"]
[Date "2023.11.03"]
[Round "7.39"]
[White "Neukirchner, Pascal"]
[Black "Czap, Bernard"]
[Result "1/2-1/2"]
[ECO "A07"]
[WhiteElo "2265"]
[BlackElo "2028"]
[Annotator "RC"]
[PlyCount "78"]
[EventDate "2023.10.04"]
[EventType "swiss"]
[EventCountry "GER"]
[SourceTitle "playchess.com"]
[Source "ChessBase"]
[SourceQuality "1"]
[TimeControl "40/5400+30:1800+30"]

1. Nf3 {[%emt 0:00:03]} d5 {[%emt 0:00:22]} 2. g3 {[%emt 0:00:05]} g6 {[%emt 0:01:02]} 3. Bg2 {[%emt 0:00:28]} Bg7 {[%emt 0:00:11]} 4. O-O {[%emt 0:01:08]} e5 {[%emt 0:01:10]} 5. d3 {[%emt 0:00:06]} Nc6 {[%emt 0:03:30]} 6. Nc3 {[%emt 0:00:08]} Nge7 {[%emt 0:01:08]} 7. e4 {[%emt 0:00:39]} dxe4 {[%emt 0:11:38]} 8. dxe4 {[%emt 0:00:23]} O-O {[%emt 0:02:35]} 9. Nd5 {[%emt 0:00:29]} Nxd5 {[%emt 0:05:02]} 10. exd5 {[%emt 0:00:08]} Nd4 {[%emt 0:00:12]} 11. c3 {[%emt 0:00:52]} Nxf3+ {[%emt 0:01:26]} 12. Qxf3 {[%emt 0:00:06]} f5 {[%emt 0:08:59]} 13. c4 {[%emt 0:00:16]} e4 {[%emt 0:00:22]} 14. Qe2 {[%emt 0:03:54]} c6 {[%emt 0:02:19]} 15. Rd1 {[%emt 0:10:48]} cxd5 {[%emt 0:00:13]} 16. cxd5 {[%emt 0:00:28]} Qb6 {[%emt 0:18:07]} 17. Be3 {[%emt 0:14:26]} Qxb2 {[%emt 0:06:43]} 18. Qxb2 {[%emt 0:00:33]} Bxb2 {[%emt 0:00:08]} 19. Rab1 {[%emt 0:00:04]} Bf6 {[%emt 0:05:38]} 20. f3 {[%emt 0:16:35]} b6 {[%emt 0:01:09]} 21. a4 {[%emt 0:08:21]} exf3 {[%emt 0:13:53]} 22. Bxf3 {[%emt 0:00:03]} Bd7 {[%emt 0:00:16]} 23. a5 {[%emt 0:02:04]} bxa5 {[%emt 0:03:10]} 24. Rb7 {[%emt 0:06:35]} Ba4 {[%emt 0:00:42]} 25. Rd2 {[%emt 0:11:42]} Rf7 {[%emt 0:08:39]} 26. Rb1 {[%emt 0:06:03]} Re8 {[%emt 0:01:33]} 27. Bf2 {[%emt 0:01:16]} a6 {[%emt 0:01:44]} 28. Rb6 {[%emt 0:03:53]} Bb5 {[%emt 0:01:00]} 29. Rc2 {[%emt 0:00:01]} a4 {[%emt 0:00:38]} 30. d6 {[%emt 0:01:07]} Rd7 {[%emt 0:00:34]} 31. Bc5 {[%emt 0:10:30]} Kg7 {[%emt 0:00:48]} 32. Kg2 {[%emt 0:00:20]} Be5 {[%emt 0:00:29]} 33. Bc6 {[%emt 0:02:11]} Bxc6+ {[%emt 0:00:10]} 34. Rxc6 {[%emt 0:00:01]} Kf6 {[%emt 0:01:07]} 35. Re2 {[%emt 0:00:57]} Re6 {[%emt 0:00:28]} 36. Rxa6 {[%emt 0:00:28]} Bxd6 {[%emt 0:00:25]} 37. Rxe6+ {[%emt 0:00:59]} Kxe6 {[%emt 0:00:07]} 38. Bxd6 {[%emt 0:00:07]} Rxd6 {[%emt 0:00:05]} 39. Rxa4 {[%emt 0:00:05]} Kf6 {[%emt 0:00:28]} 1/2-1/2

[Event "26th OIBM 2023"]
[Site "Gmund am Tegernsee"]
[Date "2023.11.03"]
[Round "7.40"]
[White "Semprun Martinez, Fernando"]
[Black "Wyss, Jonas"]
[Result "1/2-1/2"]
[ECO "E04"]
[WhiteElo "2064"]
[BlackElo "2265"]
[Annotator "RC"]
[PlyCount "78"]
[EventDate "2023.10.04"]
[EventType "swiss"]
[EventCountry "GER"]
[SourceTitle "playchess.com"]
[Source "ChessBase"]
[SourceQuality "1"]
[TimeControl "40/5400+30:1800+30"]

1. d4 {[%emt 0:00:01]} d5 {[%emt 0:00:17]} 2. c4 {[%emt 0:00:01]} e6 {[%emt 0:00:16]} 3. Nf3 {[%emt 0:00:06]} Nf6 {[%emt 0:00:08]} 4. g3 {[%emt 0:00:28]} dxc4 {[%emt 0:00:47]} 5. Bg2 {[%emt 0:00:10]} c5 {[%emt 0:00:17]} 6. O-O {[%emt 0:00:07]} Nc6 {[%emt 0:00:25]} 7. dxc5 {[%emt 0:05:40]} Qxd1 {[%emt 0:00:20]} 8. Rxd1 {[%emt 0:00:01]} Bxc5 {[%emt 0:00:15]} 9. Nbd2 {[%emt 0:00:01]} c3 {[%emt 0:00:42]} 10. bxc3 {[%emt 0:00:01]} O-O {[%emt 0:01:17]} 11. Nb3 {[%emt 0:01:10]} Be7 {[%emt 0:00:42]} 12. Nfd4 {[%emt 0:03:53]} Nxd4 {[%emt 0:00:22]} 13. cxd4 {[%emt 0:06:41]} Nd5 {[%emt 0:00:23]} 14. Bb2 {[%emt 0:01:14]} f5 {[%emt 0:09:26]} 15. Nc5 {[%emt 0:03:19]} b6 {[%emt 0:05:42]} 16. Nd3 {[%emt 0:00:22]} Ba6 {[%emt 0:06:14]} 17. Rac1 {[%emt 0:16:06]} Rac8 {[%emt 0:04:32]} 18. e4 {[%emt 0:03:50]} fxe4 {[%emt 0:07:40]} 19. Bxe4 {[%emt 0:04:25]} Rxc1 {[%emt 0:00:36]} 20. Nxc1 {[%emt 0:02:41]} Rc8 {[%emt 0:03:59]} 21. Rd2 {[%emt 0:07:38]} Nc3 {[%emt 0:11:33]} 22. Bd3 {[%emt 0:04:53]} Bxd3 {[%emt 0:02:01]} 23. Nxd3 {[%emt 0:00:02]} Nxa2 {[%emt 0:02:19]} 24. Re2 {[%emt 0:01:41]} Nb4 {[%emt 0:02:45]} 25. Nf4 {[%emt 0:00:18]} Kf7 {[%emt 0:09:14]} 26. Nxe6 {[%emt 0:01:27]} Rc2 {[%emt 0:01:47]} 27. Rxc2 {[%emt 0:03:12]} Nxc2 {[%emt 0:00:08]} 28. d5 {[%emt 0:00:22]} Bf6 {[%emt 0:05:36]} 29. Bxf6 {[%emt 0:02:26]} Kxf6 {[%emt 0:00:09]} 30. Kf1 {[%emt 0:00:55]} Nb4 {[%emt 0:02:19]} 31. Nc7 {[%emt 0:01:03]} Ke5 {[%emt 0:02:57]} 32. f4+ {[%emt 0:00:01]} Kd6 {[%emt 0:02:24]} 33. Nb5+ {[%emt 0:00:01]} Kxd5 {[%emt 0:00:17]} 34. Nxa7 {[%emt 0:00:01]} Kc5 {[%emt 0:02:56]} 35. Ke2 {[%emt 0:00:19]} Nd5 {[%emt 0:00:48]} 36. Kd3 {[%emt 0:01:38]} Ne7 {[%emt 0:00:55]} 37. Ke4 {[%emt 0:00:57]} g6 {[%emt 0:06:59]} 38. g4 {[%emt 0:00:52]} b5 {[%emt 0:09:26]} 39. Nxb5 {[%emt 0:00:31]} Kc4 {[%emt 0:00:32]} 1/2-1/2

[Event "26th OIBM 2023"]
[Site "Gmund am Tegernsee"]
[Date "2023.11.03"]
[Round "7.41"]
[White "Hoy, Bernd"]
[Black "Mueller, Elias"]
[Result "1-0"]
[ECO "B25"]
[WhiteElo "2251"]
[BlackElo "2015"]
[Annotator "RC"]
[PlyCount "134"]
[EventDate "2023.10.04"]
[EventType "swiss"]
[EventCountry "GER"]
[SourceTitle "playchess.com"]
[Source "ChessBase"]
[SourceQuality "1"]
[TimeControl "40/5400+30:1800+30"]

1. e4 {[%emt 0:00:03]} c5 {[%emt 0:00:21]} 2. Nf3 {[%emt 0:00:04]} d6 {[%emt 0:00:07]} 3. Nc3 {[%emt 0:00:05]} Nf6 {[%emt 0:01:06]} 4. d3 {[%emt 0:00:05]} Nc6 {[%emt 0:01:55]} 5. g3 {[%emt 0:00:04]} g6 {[%emt 0:01:40]} 6. Bg2 {[%emt 0:00:05]} Bg7 {[%emt 0:00:17]} 7. h3 {[%emt 0:00:04]} O-O {[%emt 0:01:03]} 8. O-O {[%emt 0:00:12]} Rb8 {[%emt 0:02:53]} 9. Be3 {[%emt 0:00:06]} b5 {[%emt 0:02:00]} 10. Qd2 {[%emt 0:00:04]} b4 {[%emt 0:01:15]} 11. Ne2 {[%emt 0:00:05]} Nd7 {[%emt 0:02:29]} 12. Rab1 {[%emt 0:03:08]} Qa5 {[%emt 0:04:05]} 13. Bh6 {[%emt 0:02:07]} Qxa2 {[%emt 0:04:48]} 14. Bxg7 {[%emt 0:00:05]} Kxg7 {[%emt 0:00:08]} 15. Nh4 {[%emt 0:00:32]} a5 {[%emt 0:18:53]} 16. b3 {[%emt 0:02:27]} Nd4 {[%emt 0:05:31]} 17. Nxd4 {[%emt 0:05:44]} cxd4 {[%emt 0:00:21]} 18. Qc1 {[%emt 0:00:14]} Nc5 {[%emt 0:06:26]} 19. Ra1 {[%emt 0:01:44]} Nxb3 {[%emt 0:00:15]} 20. Rxa2 {[%emt 0:00:22]} Nxc1 {[%emt 0:00:06]} 21. Rxc1 {[%emt 0:00:04]} Be6 {[%emt 0:01:00]} 22. Rxa5 {[%emt 0:00:25]} Rfc8 {[%emt 0:00:14]} 23. Raa1 {[%emt 0:00:10]} Rc3 {[%emt 0:00:30]} 24. Nf3 {[%emt 0:02:27]} b3 {[%emt 0:00:28]} 25. cxb3 {[%emt 0:00:40]} Rxd3 {[%emt 0:00:08]} 26. Ra4 {[%emt 0:00:12]} Bxh3 {[%emt 0:00:26]} 27. Rxd4 {[%emt 0:00:19]} Rxd4 {[%emt 0:01:33]} 28. Nxd4 {[%emt 0:00:06]} Bxg2 {[%emt 0:00:10]} 29. Kxg2 {[%emt 0:00:05]} e5 {[%emt 0:00:04]} 30. Nc6 {[%emt 0:00:47]} Rxb3 {[%emt 0:00:18]} 31. Rd1 {[%emt 0:00:42]} Rc3 {[%emt 0:01:33]} 32. Rxd6 {[%emt 0:00:11]} Rc4 {[%emt 0:00:07]} 33. Kf3 {[%emt 0:01:33]} f6 {[%emt 0:00:18]} 34. Rd7+ {[%emt 0:00:41]} Kh6 {[%emt 0:00:10]} 35. Ne7 {[%emt 0:00:48]} Kg5 {[%emt 0:00:27]} 36. Nd5 {[%emt 0:01:02]} Rd4 {[%emt 0:00:38]} 37. Ke3 {[%emt 0:02:05]} f5 {[%emt 0:00:51]} 38. f4+ {[%emt 0:03:03]} Kg4 {[%emt 0:00:37]} 39. Nf6+ {[%emt 0:00:13]} Kxg3 {[%emt 0:00:18]} 40. fxe5 {[%emt 0:00:05]} Rxd7 {[%emt 0:01:50]} 41. Nxd7 {[%emt 0:30:04]} f4+ {[%emt 0:30:06]} 42. Kd4 {[%emt 0:01:11]} f3 {[%emt 0:00:19]} 43. e6 {[%emt 0:00:05]} f2 {[%emt 0:00:07]} 44. e7 {[%emt 0:00:04]} f1=Q {[%emt 0:00:12]} 45. e8=Q {[%emt 0:00:12]} Qf2+ {[%emt 0:04:08]} 46. Kd5 {[%emt 0:02:33]} Qd2+ {[%emt 0:00:22]} 47. Ke6 {[%emt 0:00:44]} Qf4 {[%emt 0:00:53]} 48. Nf6 {[%emt 0:01:04]} Qc7 {[%emt 0:01:25]} 49. e5 {[%emt 0:01:03]} Qc4+ {[%emt 0:00:18]} 50. Nd5 {[%emt 0:01:22]} Qe4 {[%emt 0:03:19]} 51. Kd6 {[%emt 0:00:38]} h5 {[%emt 0:00:32]} 52. e6 {[%emt 0:00:22]} h4 {[%emt 0:00:26]} 53. Qh8 {[%emt 0:01:13]} h3 {[%emt 0:00:52]} 54. Qc3+ {[%emt 0:00:16]} Kg2 {[%emt 0:11:48]} 55. Ne3+ {[%emt 0:02:15]} Kf2 {[%emt 0:04:47]} 56. Nd1+ {[%emt 0:01:30]} Ke2 {[%emt 0:08:48]} 57. Qxh3 {[%emt 0:00:08]} Qb4+ {[%emt 0:07:27]} 58. Kd7 {[%emt 0:00:35]} Qb7+ {[%emt 0:01:52]} 59. Ke8 {[%emt 0:00:14]} Qb8+ {[%emt 0:00:39]} 60. Kf7 {[%emt 0:00:26]} Qf4+ {[%emt 0:01:26]} 61. Kg8 {[%emt 0:01:41]} Qb8+ {[%emt 0:00:12]} 62. Kh7 {[%emt 0:00:11]} Kxd1 {[%emt 0:02:14]} 63. Qd3+ {[%emt 0:00:42]} Ke1 {[%emt 0:00:29]} 64. Qe4+ {[%emt 0:00:24]} Kd1 {[%emt 0:00:29]} 65. Qa4+ {[%emt 0:02:33]} Ke1 {[%emt 0:00:00]} 66. e7 {[%emt 0:00:00]} Qh2+ {[%emt 0:00:00]} 67. Kg8 {[%emt 0:00:00]} Qb8+ {[%emt 0:00:00]} 1-0

[Event "26th OIBM 2023"]
[Site "Gmund am Tegernsee"]
[Date "2023.11.03"]
[Round "7.42"]
[White "Deglmann, Ludwig"]
[Black "Galioglu, Cem"]
[Result "1/2-1/2"]
[ECO "A15"]
[WhiteElo "2243"]
[BlackElo "1921"]
[Annotator "RC"]
[PlyCount "33"]
[EventDate "2023.10.04"]
[EventType "swiss"]
[EventCountry "GER"]
[SourceTitle "playchess.com"]
[Source "ChessBase"]
[SourceQuality "1"]
[TimeControl "40/5400+30:1800+30"]

1. Nf3 {[%emt 0:00:14]} Nf6 {[%emt 0:00:38]} 2. c4 {[%emt 0:01:00]} g6 {[%emt 0:00:51]} 3. b4 {[%emt 0:02:15]} Bg7 {[%emt 0:00:13]} 4. Bb2 {[%emt 0:00:06]} O-O {[%emt 0:00:08]} 5. e3 {[%emt 0:00:44]} Nc6 {[%emt 0:05:20]} 6. b5 {[%emt 0:02:30]} Na5 {[%emt 0:00:12]} 7. d4 {[%emt 0:05:30]} a6 {[%emt 0:06:07]} 8. a4 {[%emt 0:05:33]} b6 {[%emt 0:04:37]} 9. Nbd2 {[%emt 0:03:49]} Bb7 {[%emt 0:04:00]} 10. Bd3 {[%emt 0:07:37]} d6 {[%emt 0:02:48]} 11. Qc2 {[%emt 0:04:33]} Nd7 {[%emt 0:01:51]} 12. Be4 {[%emt 0:17:19]} Bxe4 {[%emt 0:01:34]} 13. Nxe4 {[%emt 0:02:08]} c5 {[%emt 0:06:17]} 14. dxc5 {[%emt 0:44:12]} Bxb2 15. Qxb2 Nxc4 {[%emt 1:03:24]} 16. Qc3 {[%emt 0:01:00]} Na5 {[%emt 0:00:30]} 17. Qb2 1/2-1/2

[Event "26th OIBM 2023"]
[Site "Gmund am Tegernsee"]
[Date "2023.11.03"]
[Round "7.43"]
[White "Heppert, Lars"]
[Black "Stricker, Florian"]
[Result "0-1"]
[ECO "E90"]
[WhiteElo "1924"]
[BlackElo "2238"]
[Annotator "RC"]
[PlyCount "56"]
[EventDate "2023.10.04"]
[EventType "swiss"]
[EventCountry "GER"]
[SourceTitle "playchess.com"]
[Source "ChessBase"]
[SourceQuality "1"]
[TimeControl "40/5400+30:1800+30"]

1. Nf3 {[%emt 0:00:06]} d6 {[%emt 0:00:06]} 2. d4 {[%emt 0:01:04]} Nf6 {[%emt 0:00:07]} 3. c4 {[%emt 0:01:12]} g6 {[%emt 0:00:08]} 4. Nc3 {[%emt 0:00:11]} Bg7 {[%emt 0:00:07]} 5. e4 {[%emt 0:00:07]} Bg4 {[%emt 0:00:12]} 6. Be2 {[%emt 0:00:12]} Bxf3 {[%emt 0:00:10]} 7. gxf3 {[%emt 0:03:52]} Nbd7 {[%emt 0:04:57]} 8. Be3 {[%emt 0:00:30]} e5 {[%emt 0:01:10]} 9. Qd2 {[%emt 0:00:32]} O-O {[%emt 0:06:00]} 10. O-O-O {[%emt 0:00:58]} Re8 {[%emt 0:09:48]} 11. h4 {[%emt 0:03:57]} h5 {[%emt 0:07:29]} 12. d5 {[%emt 0:10:06]} Kh7 {[%emt 0:06:02]} 13. Bg5 {[%emt 0:03:41]} Qb8 {[%emt 0:03:26]} 14. f4 {[%emt 0:01:35]} exf4 {[%emt 0:08:17]} 15. Qxf4 {[%emt 0:00:19]} a6 {[%emt 0:01:24]} 16. Rdg1 {[%emt 0:03:29]} Re5 {[%emt 0:05:09]} 17. Bxf6 {[%emt 0:08:27]} Nxf6 {[%emt 0:09:07]} 18. Rg5 {[%emt 0:03:03]} Qe8 {[%emt 0:06:54]} 19. Bf3 {[%emt 0:10:01]} b5 {[%emt 0:04:22]} 20. cxb5 {[%emt 0:05:23]} axb5 {[%emt 0:00:13]} 21. Rxe5 {[%emt 0:00:39]} dxe5 {[%emt 0:00:19]} 22. Qg3 {[%emt 0:01:37]} b4 {[%emt 0:00:59]} 23. Nd1 {[%emt 0:01:06]} Rxa2 {[%emt 0:02:40]} 24. Rg1 {[%emt 0:02:55]} Bh6+ {[%emt 0:01:44]} 25. Ne3 {[%emt 0:01:33]} Bf4 {[%emt 0:01:19]} 26. Qg2 {[%emt 0:00:39]} Qa4 {[%emt 0:01:12]} 27. Bd1 {[%emt 0:02:28]} b3 {[%emt 0:01:17]} 28. Qf3 {[%emt 0:00:23]} Qd4 {[%emt 0:01:30]} 0-1

[Event "26th OIBM 2023"]
[Site "Gmund am Tegernsee"]
[Date "2023.11.03"]
[Round "7.44"]
[White "Kurmangaliyeva, Liya"]
[Black "Gold, Florian"]
[Result "1-0"]
[ECO "C02"]
[WhiteElo "2236"]
[BlackElo "1898"]
[Annotator "RC"]
[PlyCount "59"]
[EventDate "2023.10.04"]
[EventType "swiss"]
[EventCountry "GER"]
[SourceTitle "playchess.com"]
[Source "ChessBase"]
[SourceQuality "1"]
[TimeControl "40/5400+30:1800+30"]

1. e4 {[%emt 0:00:11]} e6 {[%emt 0:00:03]} 2. d4 {[%emt 0:00:37]} d5 {[%emt 0:00:02]} 3. e5 {[%emt 0:00:16]} c5 {[%emt 0:00:03]} 4. c3 {[%emt 0:00:06]} Nc6 {[%emt 0:00:02]} 5. Nf3 {[%emt 0:00:18]} Bd7 {[%emt 0:00:04]} 6. Be2 {[%emt 0:00:47]} Nge7 {[%emt 0:00:05]} 7. Na3 {[%emt 0:00:26]} cxd4 {[%emt 0:00:20]} 8. cxd4 {[%emt 0:00:33]} Nf5 {[%emt 0:00:31]} 9. Nc2 {[%emt 0:00:06]} Qb6 {[%emt 0:00:06]} 10. O-O {[%emt 0:01:30]} h5 {[%emt 0:04:57]} 11. Bd3 {[%emt 0:05:44]} g6 {[%emt 0:11:43]} 12. Rb1 {[%emt 0:10:08]} Nb4 {[%emt 0:21:12]} 13. Nxb4 {[%emt 0:12:49]} Bxb4 {[%emt 0:00:09]} 14. a3 {[%emt 0:00:12]} Be7 {[%emt 0:00:07]} 15. Bxf5 {[%emt 0:01:03]} exf5 {[%emt 0:02:54]} 16. Bg5 {[%emt 0:15:05]} Bxg5 {[%emt 0:14:56]} 17. Nxg5 {[%emt 0:00:07]} f4 {[%emt 0:00:14]} 18. Qd2 {[%emt 0:02:10]} O-O {[%emt 0:04:34]} 19. Qxf4 {[%emt 0:08:33]} Bf5 {[%emt 0:01:55]} 20. Rbc1 {[%emt 0:00:31]} Qxb2 {[%emt 0:01:57]} 21. h3 {[%emt 0:09:17]} Rac8 {[%emt 0:07:37]} 22. Rxc8 {[%emt 0:03:12]} Bxc8 {[%emt 0:00:01]} 23. Rc1 {[%emt 0:08:36]} Bf5 {[%emt 0:04:10]} 24. Re1 {[%emt 0:01:13]} Be6 {[%emt 0:05:22]} 25. Re3 {[%emt 0:00:38]} Rc8 {[%emt 0:02:43]} 26. Nxe6 {[%emt 0:03:38]} fxe6 {[%emt 0:00:03]} 27. Kh2 {[%emt 0:02:02]} Qb1 {[%emt 0:03:39]} 28. Rf3 {[%emt 0:00:49]} Rc7 {[%emt 0:02:25]} 29. Qf6 {[%emt 0:00:37]} Qe4 {[%emt 0:01:04]} 30. Qd8+ {[%emt 0:00:15]} 1-0

[Event "26th OIBM 2023"]
[Site "Gmund am Tegernsee"]
[Date "2023.11.04"]
[Round "8.1"]
[White "Schneider, Ilja"]
[Black "Golubka, Petro"]
[Result "1/2-1/2"]
[ECO "B43"]
[WhiteElo "2468"]
[BlackElo "2434"]
[Annotator "ChessBase"]
[PlyCount "85"]
[EventDate "2023.10.04"]
[EventType "swiss"]
[EventCountry "GER"]
[SourceTitle "playchess.com"]
[Source "ChessBase"]
[SourceQuality "1"]
[TimeControl "40/5400+30:1800+30"]

1. e4 {[%emt 0:00:03]} c5 {[%emt 0:16:19]} 2. Nc3 {[%emt 0:00:23]} e6 {[%emt 0:00:19]} 3. Nf3 {[%emt 0:00:31]} a6 {[%emt 0:00:10]} 4. g3 {[%emt 0:00:55]} b5 {[%emt 0:00:16]} 5. Bg2 {[%emt 0:00:05]} Bb7 {[%emt 0:00:08]} 6. d4 {[%emt 0:00:08]} cxd4 {[%emt 0:00:32]} 7. Nxd4 {[%emt 0:00:05]} Nf6 {[%emt 0:00:46]} 8. O-O {[%emt 0:00:39]} b4 {[%emt 0:03:28]} 9. Na4 {[%emt 0:02:13]} Qa5 {[%emt 0:18:49]} 10. c4 {[%emt 0:03:58]} Bxe4 {[%emt 0:00:50]} 11. Bxe4 {[%emt 0:07:26]} Nxe4 {[%emt 0:00:08]} 12. Re1 {[%emt 0:09:19]} Nc5 {[%emt 0:11:22]} 13. Qf3 {[%emt 0:06:01]} Ra7 {[%emt 0:03:53]} 14. Nxc5 {[%emt 0:04:03]} Qxc5 {[%emt 0:00:27]} 15. Be3 {[%emt 0:03:00]} Qc7 {[%emt 0:01:04]} 16. Nf5 {[%emt 0:00:54]} Rb7 {[%emt 0:00:39]} 17. Qg4 {[%emt 0:14:55]} g6 {[%emt 0:03:08]} 18. Qd4 {[%emt 0:04:21]} Rg8 {[%emt 0:03:54]} 19. Nh6 {[%emt 0:04:45]} Bxh6 {[%emt 0:01:54]} 20. Bxh6 {[%emt 0:00:03]} Nc6 {[%emt 0:01:32]} 21. Qh4 {[%emt 0:03:09]} Qa5 {[%emt 0:00:55]} 22. Bg5 {[%emt 0:02:16]} h5 {[%emt 0:00:44]} 23. Rad1 {[%emt 0:02:43]} Qf5 {[%emt 0:03:36]} 24. h3 {[%emt 0:00:03]} Ne5 {[%emt 0:01:39]} 25. Re3 {[%emt 0:01:39]} Nf3+ {[%emt 0:01:15]} 26. Rxf3 {[%emt 0:00:03]} Qxf3 {[%emt 0:00:10]} 27. Qd4 {[%emt 0:00:09]} f6 {[%emt 0:01:02]} 28. Bxf6 {[%emt 0:00:28]} g5 {[%emt 0:03:25]} 29. Rd3 {[%emt 0:03:30]} Qf5 {[%emt 0:00:24]} 30. g4 {[%emt 0:00:52]} hxg4 {[%emt 0:00:53]} 31. hxg4 {[%emt 0:00:05]} Qf4 {[%emt 0:06:44]} 32. Qc5 {[%emt 0:00:17]} Kf7 {[%emt 0:04:40]} 33. Qe7+ {[%emt 0:00:29]} Kg6 {[%emt 0:00:10]} 34. Rh3 {[%emt 0:02:52]} Qxg4+ {[%emt 0:01:26]} 35. Kh2 {[%emt 0:13:48]} Qf4+ {[%emt 0:06:00]} 36. Kg1 {[%emt 0:00:33]} g4 {[%emt 0:01:12]} 37. Rh7 {[%emt 0:01:02]} Qxf6 {[%emt 0:00:51]} 38. Rh6+ {[%emt 0:00:03]} Kxh6 {[%emt 0:00:06]} 39. Qxf6+ {[%emt 0:00:01]} Kh7 {[%emt 0:00:20]} 40. Qf7+ {[%emt 0:01:05]} Rg7 {[%emt 0:00:50]} 41. Qh5+ {[%emt 0:30:25]} Kg8 {[%emt 0:30:06]} 42. Qe8+ {[%emt 0:00:01]} Kh7 {[%emt 0:00:05]} 43. Qh5+ {[%emt 0:02:44]} 1/2-1/2